bitfinex/quotes_ETHUSD_20260203
["timestamp","ask_amount","ask_price","bid_price","bid_amount"]
[1770142606634,0.00689813,2179.2,2177.8,0.5740054]
[1770142606935,0.961,2179.9,2178.1,0.00689813]
[1770142607134,0.00689813,2179.7,2177.8,13.25370732]
[1770142607556,0.00689813,2179.7,2177.8,13.24680919]
[1770142607557,0.00689813,2179.6,2177.8,13.24680919]
[1770142607835,0.961,2179.9,2178.2,0.00689813]
[1770142608033,0.961,2179.9,2178.1,0.00689813]
[1770142608352,0.00689813,2179.8,2178.0,14.78854397]
[1770142608753,0.96789813,2179.9,2178.2,0.00689813]
[1770142609139,0.961,2179.9,2178.4,0.00689813]
[1770142609338,0.961,2179.9,2178.2,13.63380379]
[1770142609650,0.961,2179.9,2178.4,0.00689813]
[1770142610060,0.961,2179.9,2178.5,1.1475786]
[1770142610368,0.961,2179.9,2178.4,1.14759835]
[1770142610669,0.10929813,2180.8,2178.4,1.14759835]
[1770142610670,12.1500186,2181.1,2179.2,0.00689813]
[1770142610870,0.96789813,2181.2,2179.4,0.00689813]
[1770142611075,0.96789813,2181.2,2179.2,0.96789813]
[1770142611257,0.96789813,2181.2,2179.4,0.00689813]
[1770142611438,1.32025466,2181.6,2179.8,0.00689813]
[1770142611644,0.00689813,2181.2,2179.1,11.78087597]
[1770142611872,0.00689813,2181.2,2179.1,11.77397784]
[1770142612073,0.00689813,2181.2,2178.9,0.00689813]
[1770142612074,0.00689813,2181.2,2179.4,0.00689813]
[1770142612274,0.00689813,2181.3,2179.6,0.00689813]
[1770142612566,0.00689813,2181.4,2179.6,1.28611208]
[1770142612737,0.00689813,2181.1,2179.6,1.28611208]
[1770142614154,0.00689813,2181.1,2179.7,1.14694682]
[1770142614876,0.45184477,2181.8,2180.0,0.00689813]
[1770142615044,0.00689813,2181.5,2179.7,1.14694682]
[1770142615241,0.00689813,2181.4,2179.7,1.15384495]
[1770142615571,0.00689813,2181.4,2179.7,1.14694682]
[1770142615748,0.00689813,2181.4,2179.7,1.15384495]
[1770142615949,0.00689813,2181.4,2179.7,1.14694682]
[1770142616176,1.26708447,2181.6,2180.4,0.00689813]
[1770142616177,1.26018634,2181.6,2180.4,0.00689813]
[1770142616340,0.45184477,2181.8,2180.3,2.11552932]
[1770142616541,0.45184477,2181.8,2180.4,12.27574586]
[1770142616855,0.45184477,2181.8,2180.5,0.962]
[1770142617052,0.45184477,2181.8,2180.6,0.00689813]
[1770142617255,11.88848492,2182.7,2180.6,0.00689813]
[1770142617791,0.00689813,2182.4,2180.5,0.962]
[1770142617967,0.00689813,2182.4,2180.6,0.00689813]
[1770142618272,0.0011,2182.0,2180.5,0.962]
[1770142618659,0.0011,2182.0,2180.5,1.43843771]
[1770142620277,0.0011,2182.0,2180.5,2.58494869]
[1770142620470,0.0011,2182.0,2179.8,12.84285313]
[1770142620471,0.00689813,2181.6,2179.8,12.84285313]
[1770142620672,11.88958492,2182.0,2180.5,1.14652471]
[1770142620673,0.00689813,2181.9,2180.5,1.14652471]
[1770142620870,0.00799813,2182.0,2180.5,1.14652471]
[1770142621073,0.0011,2182.0,2180.6,0.57326924]
[1770142621385,0.0011,2182.0,2180.5,2.10752526]
[1770142621546,0.0011,2182.0,2180.6,0.00689813]
[1770142623955,0.0011,2182.0,2180.8,0.57459006]
[1770142624566,0.0011,2182.0,2180.8,1.72095506]
[1770142624764,11.88158679,2183.5,2181.7,0.00689813]
[1770142624994,11.88158679,2183.5,2181.7,0.96789813]
[1770142625192,1.18815868,2183.4,2181.7,0.96789813]
[1770142625481,1.18815868,2183.4,2181.7,0.961]
[1770142625684,13.06974547,2183.4,2180.9,12.27574586]
[1770142625860,0.00689813,2183.1,2180.9,12.27574586]
[1770142626195,0.00689813,2183.0,2181.2,0.961]
[1770142626379,0.00689813,2182.9,2181.1,0.961]
[1770142626556,0.00689813,2183.1,2181.2,1.14615807]
[1770142626757,13.06974547,2183.4,2181.7,0.00689813]
[1770142627057,1.30697455,2183.3,2181.4,13.22984773]
[1770142627280,13.18856134,2183.3,2181.3,0.00689813]
[1770142627482,11.88848492,2182.9,2181.0,1.14625659]
[1770142627802,1.1895383,2182.8,2181.1,2.48769942]
[1770142627958,1.1895383,2182.8,2181.1,2.49459755]
[1770142628158,1.1895383,2182.8,2181.1,2.48769942]
[1770142628557,1.1895383,2182.8,2181.2,0.00689813]
[1770142628764,1.1895383,2182.8,2181.4,1.14605299]
[1770142628962,1.30711251,2182.7,2181.3,1.14609574]
[1770142629179,11.88848492,2183.4,2181.6,0.00689813]
[1770142629406,0.00689813,2183.2,2181.1,2.48769148]
[1770142629573,11.88158679,2183.1,2181.3,1.14608018]
[1770142629777,11.88158679,2183.1,2181.1,1.34840856]
[1770142629778,11.88848492,2183.0,2181.8,0.001]
[1770142630077,1.18884849,2182.9,2181.8,0.001]
[1770142630305,13.07043528,2182.9,2181.8,0.001]
[1770142632938,1.18884849,2182.9,2181.8,0.001]
[1770142633089,0.0011,2183.2,2181.8,0.001]
[1770142633493,11.88268679,2183.2,2181.8,0.001]
[1770142634395,11.88158679,2183.0,2181.8,0.001]
[1770142635385,11.88158679,2183.0,2180.8,0.57459006]
[1770142635588,11.88158679,2182.2,2180.7,0.001]
[1770142635779,2.26408931,2182.1,2180.7,0.001]
[1770142635979,1.30308931,2182.1,2180.7,1.14738199]
[1770142636213,1.15620442,2182.6,2180.9,0.00689813]
[1770142636214,0.961,2182.6,2180.9,0.00689813]
[1770142636381,0.961,2182.6,2181.0,0.00689813]
[1770142636788,12.84258679,2182.6,2180.7,0.00789813]
[1770142636997,16.72358679,2182.4,2180.7,0.001]
[1770142637305,11.88158679,2182.4,2180.7,0.001]
[1770142638511,16.72358679,2182.4,2180.7,0.001]
[1770142638714,16.72358679,2181.7,2180.7,0.001]
[1770142638901,4.842,2181.5,2179.8,0.5740054]
[1770142639101,4.842,2181.5,2179.3,12.27574586]
[1770142639102,16.72358679,2181.2,2179.3,12.26884773]
[1770142639302,13.03089308,2181.2,2179.3,12.27574586]
[1770142639609,16.72358679,2181.0,2178.8,12.27574586]
[1770142639807,7.59028931,2180.9,2179.0,1.15418093]
[1770142640008,7.59028931,2180.9,2179.5,0.00689813]
[1770142640009,2.74828931,2180.9,2179.5,0.00689813]
[1770142640210,0.961,2180.9,2179.2,0.00689813]
[1770142640626,0.961,2180.9,2179.3,1.15405246]
[1770142640799,0.961,2180.9,2179.4,0.00689813]
[1770142641119,0.961,2180.9,2179.3,1.1540495]
[1770142641320,0.961,2180.9,2179.5,1.1539502]
[1770142641508,0.961,2180.9,2179.5,0.57560273]
[1770142641713,0.961,2180.9,2179.6,0.00689813]
[1770142641914,0.961,2180.9,2179.5,0.00689813]
[1770142642126,0.961,2180.9,2179.4,1.15399955]
[1770142642301,0.961,2180.9,2179.2,1.15409784]
[1770142642638,0.961,2180.9,2179.3,1.15402564]
[1770142642830,0.961,2180.9,2179.4,1.72997589]
[1770142643199,0.961,2180.9,2179.6,0.00689813]
[1770142643396,0.961,2180.9,2179.5,0.00689813]
[1770142644998,0.961,2180.9,2179.9,0.00689813]
[1770142645230,0.961,2180.9,2179.6,1.15389757]
[1770142645435,0.961,2180.9,2179.7,1.83645615]
[1770142645856,0.961,2180.9,2179.8,0.00689813]
[1770142646006,13.12374178,2181.7,2180.0,0.00689813]
[1770142646211,2.11030629,2182.0,2180.2,0.00689813]
[1770142646520,0.36563391,2181.9,2180.3,0.00689813]
[1770142646700,0.36563391,2181.9,2180.6,0.00689813]
[1770142646904,0.961,2182.0,2180.7,0.00689813]
[1770142647107,0.961,2182.0,2180.7,1.15329522]
[1770142647739,0.961,2182.0,2180.3,17.2021068]
[1770142647938,0.961,2182.0,2180.3,12.6156963]
[1770142648106,0.961,2182.0,2180.4,1.15347503]
[1770142648407,0.961,2182.0,2180.5,1.83556885]
[1770142648733,2.11030629,2182.0,2180.3,1.14660355]
[1770142648918,0.961,2182.0,2180.2,1.14664702]
[1770142649119,0.961,2182.0,2180.1,1.15360128]
[1770142649321,0.961,2182.0,2180.2,0.00689813]
[1770142649733,0.961,2182.0,2180.4,0.00689813]
[1770142649933,0.961,2182.0,2180.7,0.00689813]
[1770142650132,0.961,2182.0,2180.6,0.00689813]
[1770142650321,0.961,2182.0,2180.4,0.00689813]
[1770142650523,0.961,2182.0,2180.4,1.35904926]
[1770142650725,12.93543549,2182.0,2180.4,1.35904926]
[1770142651033,12.93543549,2182.0,2180.2,0.00689813]
[1770142651224,12.93543549,2182.0,2179.9,1.14681147]
[1770142651430,11.97443549,2181.8,2179.8,12.6156963]
[1770142651851,11.97443549,2181.4,2179.7,1.83645615]
[1770142652165,1.19744355,2181.3,2179.4,0.58287127]
[1770142652350,1.19744355,2181.3,2179.4,0.57597314]
[1770142652351,13.17187904,2181.3,2179.4,0.57597314]
[1770142652555,11.97443549,2181.0,2179.4,0.001]
[1770142652878,11.97443549,2180.8,2179.4,0.001]
[1770142653958,11.97443549,2180.8,2179.1,0.001]
[1770142653959,0.00689813,2180.5,2179.1,0.001]
[1770142654165,11.97443549,2180.4,2179.1,0.001]
[1770142654344,11.97443549,2180.2,2178.4,1.14762948]
[1770142654543,11.97443549,2180.2,2178.3,1.1486583]
[1770142654861,11.97443549,2180.2,2178.3,0.00789813]
[1770142655033,11.97443549,2180.2,2178.5,1.15444]
[1770142655225,1.19744355,2180.1,2179.4,0.001]
[1770142656560,1.19744355,2180.1,2179.1,0.001]
[1770142659550,2.43104689,2180.5,2179.1,0.001]
[1770142660264,11.97443549,2180.2,2178.3,12.6166963]
[1770142660443,11.97443549,2180.2,2178.3,0.001]
[1770142660643,11.97443549,2180.2,2178.3,0.00789813]
[1770142660844,13.17256885,2180.1,2178.3,1.47571479]
[1770142661234,13.17256885,2180.1,2178.3,0.001]
[1770142661235,11.97443549,2179.9,2178.3,0.001]
[1770142661483,11.98133362,2179.7,2178.3,0.001]
[1770142661783,11.98133362,2179.7,2178.0,0.001]
[1770142661784,11.97443549,2179.1,2178.0,0.001]
[1770142662067,1.19813336,2179.0,2178.0,0.001]
[1770142662230,0.1024,2178.9,2176.7,12.6156963]
[1770142662434,0.1024,2178.9,2176.2,12.6156963]
[1770142662435,0.1024,2178.3,2176.2,12.6156963]
[1770142662672,0.1024,2178.3,2176.0,0.0074341]
[1770142662673,11.97443549,2178.1,2176.0,0.0074341]
[1770142662834,11.97443549,2178.1,2176.0,13.77891996]
[1770142663031,11.97443549,2178.1,2176.1,12.6156963]
[1770142663032,0.96889813,2178.0,2176.1,12.6156963]
[1770142663245,0.96889813,2178.0,2176.1,13.76453413]
[1770142663479,1.20837336,2178.3,2176.6,0.00689813]
[1770142663647,0.96889813,2178.4,2176.6,1.26363907]
[1770142663845,0.96889813,2178.4,2176.8,12.62259443]
[1770142663846,0.962,2178.4,2176.8,12.62259443]
[1770142664047,11.98133362,2178.8,2176.7,0.00689813]
[1770142664048,0.00689813,2178.6,2176.7,0.00689813]
[1770142664230,1.30261112,2178.6,2176.7,1.39000298]
[1770142664558,0.00689813,2178.4,2176.7,1.39000298]
[1770142664934,0.00689813,2178.3,2176.7,1.39000298]
[1770142665167,1.30261112,2178.6,2177.3,0.00689813]
[1770142665168,1.29571299,2178.6,2177.3,0.00689813]
[1770142665363,0.962,2178.7,2176.7,12.6156963]
[1770142665565,0.00689813,2178.5,2176.7,12.6156963]
[1770142665764,0.00689813,2178.5,2176.4,12.6156963]
[1770142665765,0.48211677,2178.5,2176.4,12.6156963]
[1770142665981,0.962,2178.7,2177.3,12.6156963]
[1770142666271,0.962,2178.7,2177.3,13.87726593]
[1770142666645,0.00689813,2179.1,2177.5,12.6156963]
[1770142666847,1.19813336,2180.1,2178.2,12.62259443]
[1770142667072,1.19813336,2180.1,2178.4,12.6156963]
[1770142667073,0.00689813,2179.9,2178.4,12.6156963]
[1770142667375,0.00689813,2179.7,2177.9,12.6156963]
[1770142667678,0.00689813,2179.6,2177.9,12.6156963]
[1770142667895,0.00689813,2179.5,2178.0,1.37636362]
[1770142668544,0.00689813,2179.6,2178.0,1.37636362]
[1770142668770,0.00689813,2179.6,2178.0,15.13986874]
[1770142668947,0.96889813,2179.7,2178.1,13.76348492]
[1770142668948,0.962,2179.7,2178.1,13.76348492]
[1770142669148,0.962,2179.7,2178.1,12.6156963]
[1770142669372,0.962,2179.7,2178.2,14.01490229]
[1770142670567,0.00689813,2179.6,2178.2,14.01490229]
[1770142670770,0.00689813,2179.5,2177.7,11.91446362]
[1770142670987,0.00689813,2179.4,2177.7,11.91446362]
[1770142671354,0.00689813,2179.8,2178.0,11.91346362]
[1770142672068,0.96999813,2179.9,2178.2,11.91346362]
[1770142672069,0.9631,2179.9,2178.2,11.91346362]
[1770142672259,0.9631,2179.9,2178.3,12.87546362]
[1770142672459,0.9631,2179.9,2178.5,11.91346362]
[1770142672845,0.00689813,2179.8,2178.4,1.28754636]
[1770142673055,0.00689813,2179.8,2178.0,12.87546362]
[1770142673056,0.00689813,2179.7,2178.0,12.87546362]
[1770142673243,0.00689813,2179.7,2178.0,11.91346362]
[1770142673244,0.00689813,2179.4,2178.0,11.91346362]
[1770142673440,0.00689813,2179.3,2178.0,11.91346362]
[1770142673678,0.00689813,2179.3,2178.0,13.10480998]
[1770142673990,0.00689813,2179.3,2177.7,0.001]
[1770142674192,0.00689813,2178.8,2177.7,0.001]
[1770142674566,0.00689813,2178.9,2177.7,0.001]
[1770142674992,0.00689813,2179.2,2177.7,0.001]
[1770142675204,12.49076055,2179.7,2177.7,0.001]
[1770142675205,0.00689813,2179.7,2177.9,13.27749598]
[1770142675368,0.00689813,2179.7,2178.0,1.3277496]
[1770142675569,0.00689813,2179.3,2178.0,1.3277496]
[1770142675777,0.00689813,2179.2,2177.7,0.001]
[1770142676186,0.00689813,2179.1,2177.7,0.001]
[1770142677294,0.00689813,2178.9,2177.7,0.001]
[1770142677466,0.00689813,2178.8,2177.7,0.001]
[1770142677674,0.00689813,2178.6,2177.7,0.001]
[1770142679597,0.00689813,2178.4,2177.5,0.001]
[1770142679963,0.00689813,2178.7,2177.5,0.001]
[1770142680366,0.962,2178.8,2177.5,0.001]
[1770142680759,1.17122702,2179.7,2177.8,12.12963276]
[1770142680963,1.5540309,2179.9,2178.4,12.12963276]
[1770142680964,0.0011,2179.9,2178.4,12.12963276]
[1770142681181,0.0011,2179.9,2178.4,13.09263276]
[1770142681386,0.0011,2179.9,2177.9,13.27752423]
[1770142681387,0.00689813,2179.7,2177.9,13.27752423]
[1770142681693,0.00689813,2179.8,2178.1,12.13653089]
[1770142681896,1.16432889,2180.6,2179.5,12.12963276]
[1770142682193,3.92148613,2181.3,2179.5,12.12963276]
[1770142682194,0.00689813,2181.5,2179.6,0.963]
[1770142682393,0.00799813,2181.6,2180.2,12.12963276]
[1770142682394,0.0011,2181.6,2180.2,12.12963276]
[1770142682572,0.0011,2181.6,2180.3,1.21365309]
[1770142682776,0.0011,2181.8,2180.3,1.21365309]
[1770142682777,0.963,2182.6,2181.0,12.12963276]
[1770142683105,1.16542889,2182.7,2181.5,0.00689813]
[1770142683106,0.0011,2182.7,2181.5,0.00689813]
[1770142683302,0.0011,2183.2,2181.5,0.00689813]
[1770142683303,0.0011,2183.2,2181.7,12.12963276]
[1770142683476,0.0011,2183.2,2181.9,12.13653089]
[1770142683677,0.31735283,2183.9,2182.4,12.12963276]
[1770142683976,0.00689813,2184.6,2182.4,12.12963276]
[1770142683977,0.0011,2185.2,2183.8,12.13653089]
[1770142684177,0.0011,2185.2,2183.9,1.21365309]
[1770142684364,0.0011,2185.2,2183.9,12.12963276]
[1770142684565,0.0011,2185.2,2184.2,0.00689813]
[1770142684767,0.0011,2185.2,2183.9,12.12963276]
[1770142685103,0.3225655,2185.8,2184.1,13.09853089]
[1770142685310,0.3225655,2185.8,2184.2,0.96889813]
[1770142685463,0.3225655,2185.8,2184.3,1.3105429]
[1770142685674,0.3225655,2185.8,2183.5,12.12963276]
[1770142685675,0.00689813,2185.4,2183.5,12.12963276]
[1770142685967,0.00689813,2185.7,2183.8,12.12963276]
[1770142686271,0.00689813,2185.1,2183.2,12.12963276]
[1770142686495,0.00689813,2184.7,2183.2,12.12963276]
[1770142686770,0.00689813,2183.9,2182.1,12.12963276]
[1770142686967,0.00689813,2184.0,2182.2,13.34328585]
[1770142687186,0.00689813,2184.3,2182.4,12.13653089]
[1770142687369,0.00689813,2184.3,2182.4,12.12963276]
[1770142687703,0.00689813,2185.4,2183.4,0.00689813]
[1770142687868,0.50022572,2185.6,2184.0,0.00689813]
[1770142688070,0.50022572,2185.6,2183.0,12.13653089]
[1770142688274,0.50022572,2185.6,2183.6,12.13653089]
[1770142688504,0.50022572,2185.6,2184.0,0.00689813]
[1770142688702,0.50022572,2185.6,2183.8,12.12963276]
[1770142688928,0.00689813,2185.5,2183.5,12.12963276]
[1770142689086,0.00689813,2185.5,2183.6,0.00689813]
[1770142689314,0.50022572,2185.6,2183.8,12.13653089]
[1770142689627,0.50022572,2185.6,2183.8,12.12963276]
[1770142689827,0.50022572,2185.6,2183.9,0.00689813]
[1770142690135,0.0011,2186.2,2184.5,0.00689813]
[1770142690321,0.00689813,2186.8,2184.5,0.00689813]
[1770142690322,0.1145692,2187.0,2185.5,0.00689813]
[1770142690542,0.1145692,2187.0,2185.7,0.00689813]
[1770142690724,0.1145692,2187.0,2185.3,12.12963276]
[1770142691058,0.1145692,2187.0,2184.8,0.00689813]
[1770142691059,0.00689813,2186.6,2184.7,12.12963276]
[1770142691249,0.00689813,2186.2,2184.2,13.09063276]
[1770142691413,0.00689813,2186.2,2184.3,0.00689813]
[1770142691616,0.00689813,2186.0,2183.7,12.12963276]
[1770142691854,0.00689813,2186.0,2183.8,14.30359604]
[1770142691855,0.00689813,2185.8,2183.8,14.30359604]
[1770142692119,0.00689813,2186.2,2183.8,14.30359604]
[1770142692120,0.1145692,2187.0,2184.5,0.2335703]
[1770142692351,0.1145692,2187.0,2184.3,0.2335703]
[1770142692352,0.00689813,2186.5,2184.9,12.12963276]
[1770142692959,0.00689813,2186.5,2184.3,12.13653089]
[1770142693162,0.00689813,2185.8,2184.3,12.12963276]
[1770142693463,0.00689813,2186.1,2184.3,12.12963276]
[1770142693631,0.00689813,2185.8,2184.3,12.12963276]
[1770142693958,0.00689813,2185.7,2184.3,12.12963276]
[1770142694165,0.00689813,2185.7,2183.4,12.12963276]
[1770142694166,0.00689813,2185.2,2183.4,12.12963276]
[1770142694362,0.00689813,2185.1,2183.4,13.09063276]
[1770142694540,0.00689813,2185.2,2183.4,14.39969604]
[1770142694742,0.00689813,2185.2,2183.4,12.12963276]
[1770142694943,0.00689813,2184.8,2183.0,0.961]
[1770142695141,0.00689813,2184.6,2183.0,0.961]
[1770142695666,0.00689813,2184.6,2182.8,12.12963276]
[1770142695667,0.00689813,2184.5,2182.8,12.12963276]
[1770142695852,0.00689813,2184.5,2182.7,0.00689813]
[1770142696161,0.00689813,2184.5,2182.6,0.00689813]
[1770142696162,0.00689813,2184.4,2183.4,0.001]
[1770142696566,0.00689813,2184.4,2182.2,1.21365309]
[1770142696567,0.00689813,2184.3,2182.2,1.21365309]
[1770142696730,0.00689813,2184.3,2182.3,0.58031844]
[1770142696731,0.00689813,2183.9,2182.3,0.58031844]
[1770142696926,0.00689813,2184.6,2182.8,1.1452756]
[1770142697131,0.00689813,2184.9,2183.0,0.00689813]
[1770142697360,0.1024,2184.8,2183.0,0.00689813]
[1770142697560,0.1024,2184.8,2182.7,13.09063276]
[1770142697764,0.10929813,2184.8,2182.8,0.96]
[1770142697964,0.10929813,2184.8,2182.8,2.11218072]
[1770142698266,0.10929813,2184.8,2182.8,16.12557502]
[1770142698571,0.10929813,2184.8,2178.8,12.12963276]
[1770142698572,0.71883203,2180.4,2178.8,12.12963276]
[1770142698776,0.00689813,2180.3,2177.8,8.0323264]
[1770142698960,0.71883203,2180.4,2178.9,0.00689813]
[1770142699270,0.71883203,2180.4,2178.8,0.00689813]
[1770142699466,0.71883203,2180.4,2178.7,0.00689813]
[1770142699669,0.71883203,2180.4,2178.8,0.00689813]
[1770142699840,0.71883203,2180.4,2179.2,0.00689813]
[1770142700168,0.10929813,2181.4,2179.3,0.00689813]
[1770142700169,0.1024,2181.4,2179.3,0.00689813]
[1770142700340,4.9444,2181.5,2179.5,0.00689813]
[1770142700664,0.00689813,2181.2,2178.8,0.00689813]
[1770142700842,0.00689813,2181.1,2178.7,12.12963276]
[1770142701044,0.05929813,2180.9,2178.5,0.96789813]
[1770142701243,0.00689813,2180.5,2178.4,0.00689813]
[1770142701468,0.00689813,2180.5,2178.6,0.00689813]
[1770142701674,0.00689813,2180.5,2178.4,0.00689813]
[1770142702071,0.00689813,2180.5,2177.8,8.03922453]
[1770142702072,1.05394348,2178.0,2176.0,0.0074341]
[1770142702271,12.16736933,2178.2,2173.6,1.38019439]
[1770142702272,0.00689813,2177.3,2173.6,1.38019439]
[1770142702456,0.00689813,2177.3,2173.5,0.23390726]
[1770142702457,0.00689813,2177.7,2175.4,8.0323264]
[1770142702644,0.00689813,2177.7,2175.6,0.00689813]
[1770142702846,0.00689813,2177.7,2175.4,0.00689813]
[1770142703046,0.00689813,2177.2,2175.1,0.961]
[1770142703245,0.00689813,2177.2,2175.2,0.00689813]
[1770142703474,0.836,2177.1,2174.9,0.00689813]
[1770142703676,0.84289813,2177.2,2175.0,0.00689813]
[1770142703866,0.00689813,2177.2,2174.9,0.00689813]
[1770142704191,12.16736933,2177.5,2174.9,0.00689813]
[1770142704192,12.1604712,2177.5,2175.2,0.00689813]
[1770142704474,1.21673693,2177.4,2175.7,0.00689813]
[1770142704768,1.53385862,2178.1,2176.0,0.00689813]
[1770142705070,1.53385862,2178.1,2175.8,0.00689813]
[1770142705071,0.1024,2178.0,2175.8,0.00689813]
[1770142705371,0.1024,2178.0,2175.9,0.00689813]
[1770142705569,1.4827628,2178.0,2176.0,0.00689813]
[1770142705968,0.1024,2177.9,2176.1,0.00689813]
[1770142706158,1.3803628,2178.0,2176.5,0.00689813]
[1770142706359,0.31643187,2178.1,2176.5,0.00689813]
[1770142706666,0.31643187,2178.1,2176.7,0.00689813]
[1770142707239,0.31643187,2178.1,2176.8,0.00689813]
[1770142707750,0.31643187,2178.1,2175.8,0.00689813]
[1770142707980,0.31643187,2178.1,2176.5,0.00689813]
[1770142708179,0.31643187,2178.1,2176.7,0.00689813]
[1770142708496,0.31643187,2178.1,2176.5,0.00689813]
[1770142708701,0.31643187,2178.1,2175.4,8.16211387]
[1770142708702,12.1604712,2176.5,2173.7,0.23942491]
[1770142708866,12.15357164,2176.2,2173.7,0.23942491]
[1770142709192,2.02201851,2176.4,2174.1,0.00689813]
[1770142709367,2.02891664,2176.4,2174.0,0.00689813]
[1770142709565,0.00689813,2176.3,2174.6,0.001]
[1770142710061,0.00689813,2176.1,2174.6,0.001]
[1770142710263,12.1604712,2177.4,2175.2,0.00689813]
[1770142710498,1.21604712,2177.3,2175.4,0.00689813]
[1770142710797,1.21604712,2177.3,2175.1,0.00689813]
[1770142711088,1.21604712,2177.3,2175.3,0.00689813]
[1770142711472,1.21604712,2177.3,2175.6,0.00689813]
[1770142711776,1.21604712,2177.3,2175.7,0.00689813]
[1770142711977,13.2248712,2177.9,2175.5,0.00689813]
[1770142712176,13.2248712,2177.9,2175.8,0.00689813]
[1770142712397,13.2248712,2177.9,2175.6,0.00689813]
[1770142712563,13.1224712,2177.9,2175.5,0.00689813]
[1770142712765,13.1224712,2177.9,2173.8,0.00689813]
[1770142712766,12.1604712,2176.5,2173.8,0.00689813]
[1770142712987,12.1604712,2176.5,2171.7,0.00689813]
[1770142712988,12.16736933,2174.0,2171.7,0.00689813]
[1770142713187,8.05971387,2174.5,2171.8,0.40986061]
[1770142713188,0.23886752,2174.4,2171.8,0.40986061]
[1770142713433,12.2628712,2174.3,2171.8,0.29916235]
[1770142713586,12.2628712,2174.3,2171.9,0.00690321]
[1770142713788,0.1024,2174.1,2171.8,1.45028121]
[1770142714017,1.25017387,2174.2,2172.0,0.00690321]
[1770142714234,1.25017387,2174.2,2171.9,0.00690321]
[1770142714521,13.41064507,2174.2,2172.1,0.00690321]
[1770142714723,1.25017387,2174.2,2172.3,0.00690321]
[1770142715014,0.23886752,2174.4,2172.5,0.00690321]
[1770142715220,0.23886752,2174.4,2171.9,12.69343312]
[1770142715523,0.23886752,2174.4,2172.8,0.00690321]
[1770142715729,0.23886752,2174.4,2171.8,0.29916235]
[1770142716025,0.23886752,2174.4,2172.8,0.00690321]
[1770142716326,0.23886752,2174.4,2172.6,0.00690321]
[1770142716494,0.23886752,2174.4,2172.3,0.96990321]
[1770142716695,0.62670135,2174.4,2172.6,0.00690321]
[1770142716943,0.62670135,2174.4,2172.8,1.15746739]
[1770142717236,0.23886752,2174.4,2173.1,0.00690321]
[1770142717391,0.23886752,2174.4,2173.6,0.00690321]
[1770142717593,0.23886752,2174.4,2173.4,1.15713591]
[1770142717909,0.23886752,2174.4,2173.5,0.57652459]
[1770142718094,0.23886752,2174.4,2173.1,1.15731946]
[1770142718291,0.23886752,2174.4,2173.1,0.00690321]
[1770142718517,0.23886752,2174.4,2173.2,0.00690321]
[1770142718723,0.23886752,2174.4,2173.3,1.15722381]
[1770142718918,0.23886752,2174.4,2173.2,1.15725123]
[1770142719126,0.23886752,2174.4,2173.5,0.00690321]
[1770142719297,12.1604712,2175.6,2173.5,0.00690321]
[1770142719493,12.1604712,2175.6,2173.4,0.00690321]
[1770142719701,12.1604712,2175.3,2172.8,0.00690321]
[1770142720025,1.21604712,2175.2,2173.5,0.00690321]
[1770142720227,1.21604712,2175.2,2173.4,1.15715239]
[1770142720228,1.21604712,2175.2,2173.4,0.00690321]
[1770142720422,1.21604712,2175.2,2173.4,1.15714991]
[1770142720725,1.21604712,2175.2,2173.1,1.1573233]
[1770142721026,1.21604712,2175.2,2173.2,0.00690321]
[1770142721226,12.1604712,2175.3,2173.3,1.15029313]
[1770142721227,1.33765183,2175.1,2173.3,1.15029313]
[1770142721427,0.42188721,2175.9,2173.4,1.15026855]
[1770142721627,0.31948721,2175.9,2174.6,1.15653992]
[1770142721799,0.31948721,2175.9,2174.7,0.00690321]
[1770142721999,0.31948721,2175.9,2174.5,1.15657113]
[1770142722323,0.31948721,2175.9,2174.6,0.00690321]
[1770142722525,1.21604712,2176.4,2175.1,0.00690321]
[1770142722725,12.1604712,2177.2,2175.4,0.00690321]
[1770142722926,12.1604712,2177.2,2174.7,8.06661708]
[1770142723105,12.1604712,2177.2,2175.0,0.00690321]
[1770142723305,12.1604712,2177.2,2174.6,0.57691359]
[1770142723509,12.1604712,2177.2,2174.6,0.00690321]
[1770142723713,8.05971387,2177.4,2174.6,0.00690321]
[1770142723714,12.1604712,2177.0,2174.7,0.00690321]
[1770142724029,12.1604712,2176.8,2174.1,0.00690321]
[1770142724221,12.1604712,2176.8,2174.8,0.00690321]
[1770142724529,12.1604712,2176.6,2174.3,2.12066435]
[1770142724732,12.1604712,2176.6,2174.2,0.00690321]
[1770142724902,12.1604712,2176.5,2174.4,0.00690321]
[1770142725232,12.1604712,2176.5,2174.5,0.00690321]
[1770142725430,10.6811,2175.1,2173.4,4.60780389]
[1770142725595,12.1604712,2176.5,2174.4,0.00690321]
[1770142725800,12.1604712,2176.5,2174.5,0.00690321]
[1770142726036,17.0024712,2176.5,2174.6,0.00690321]
[1770142726231,17.0024712,2176.5,2174.5,0.00690321]
[1770142726435,1.21604712,2176.7,2175.0,0.00690321]
[1770142726752,1.21604712,2176.7,2174.9,0.00690321]
[1770142726753,12.1604712,2177.1,2174.9,0.00690321]
[1770142726931,12.1604712,2177.1,2175.3,0.00690321]
[1770142727117,12.1604712,2177.1,2175.2,0.00690321]
[1770142727433,17.0024712,2177.1,2175.1,0.00690321]
[1770142727633,1.70024712,2177.0,2175.3,0.00690321]
[1770142727834,1.70024712,2177.0,2175.2,0.00690321]
[1770142728045,1.70024712,2177.0,2174.6,0.97090321]
[1770142728046,17.0024712,2176.8,2174.6,0.97090321]
[1770142728220,12.1604712,2176.8,2174.6,0.964]
[1770142728407,1.70024712,2177.0,2174.6,0.964]
[1770142728408,13.37651832,2176.7,2174.8,0.00690321]
[1770142728614,1.70024712,2177.0,2172.2,0.18432]
[1770142728615,0.7208896,2174.2,2172.2,0.18432]
[1770142728817,0.7208896,2174.2,2171.8,0.14141634]
[1770142728818,0.00690321,2172.3,2171.8,0.14141634]
[1770142729030,0.7208896,2174.2,2171.9,0.00690321]
[1770142729224,1.38453608,2174.1,2172.0,0.00690591]
[1770142729514,1.38453608,2174.1,2172.7,0.00690591]
[1770142729710,1.38453608,2174.1,2172.6,0.00690591]
[1770142730219,0.7208896,2174.2,2172.9,0.00690591]
[1770142730420,0.7208896,2174.2,2172.8,0.00690591]
[1770142730726,0.7208896,2174.2,2172.9,0.00690591]
[1770142731732,0.7208896,2174.2,2172.8,0.00690591]
[1770142731922,0.7208896,2174.2,2173.2,0.00690591]
[1770142732125,0.7208896,2174.2,2173.1,0.00690591]
[1770142732443,0.7208896,2174.2,2172.3,1.15085319]
[1770142732637,0.7208896,2174.2,2172.4,0.97090591]
[1770142732830,0.7208896,2174.2,2172.6,0.00690591]
[1770142733144,0.7208896,2174.2,2172.3,0.00690591]
[1770142733327,0.7208896,2174.2,2172.5,0.97090591]